fUST/lending_fUST_20260117
["ID","MTS","AMOUNT","RATE_DAILY","PERIOD"]
[402278745,1768642238852,-500.0,0.00016438,3]
[402278746,1768642238862,-500.0,0.00016438,3]
[402278747,1768642238872,-344.19716838,0.00016438,3]
[402278748,1768642238883,-283.24,0.00016438,3]
[402278749,1768642238893,-500.0,0.00016438,3]
[402278750,1768642238902,-500.0,0.00016438,3]
[402278751,1768642238912,-500.0,0.00016438,3]
[402278752,1768642239205,-500.0,0.00016438,3]
[402278753,1768642239276,-555.42,0.00016438,3]
[402278754,1768642239286,-648.24,0.00016438,3]
[402278755,1768642239296,-500.0,0.00016438,3]
[402278756,1768642239305,-500.0,0.00016438,3]
[402278757,1768642239315,-500.0,0.00016438,3]
[402278758,1768642239324,-500.0,0.00016438,3]
[402278759,1768642239334,-500.0,0.00016438,3]
[402278760,1768642239344,-500.0,0.00016438,3]
[402278761,1768642239353,-215.10452107,0.00016438,3]
[402278762,1768642239363,-500.0,0.00016438,3]
[402278763,1768642239372,-500.0,0.00016438,3]
[402278764,1768642239382,-500.0,0.00016438,3]
[402278765,1768642239391,-500.0,0.00016438,3]
[402278766,1768642239400,-500.0,0.00016438,3]
[402278767,1768642239411,-500.0,0.00016438,3]
[402278768,1768642239421,-747.2,0.00016438,3]
[402278769,1768642239435,-602.26,0.00016438,3]
[402278770,1768642239446,-500.0,0.00016438,3]
[402278771,1768642239456,-500.0,0.00016438,3]
[402278772,1768642239465,-822.47,0.00016438,3]
[402278773,1768642239475,-1074.85,0.00016438,3]
[402278774,1768642239486,-500.0,0.00016438,3]
[402278775,1768642239495,-500.0,0.00016438,3]
[402278776,1768642239504,-1136.82,0.00016438,3]
[402278777,1768642239516,-500.0,0.00016438,3]
[402278778,1768642239524,-536.3,0.00016438,3]
[402278779,1768642239532,-500.0,0.00016438,3]
[402278780,1768642239542,-888.01,0.00016438,3]
[402278781,1768642239552,-584.9,0.00016438,3]
[402278782,1768642239561,-500.0,0.00016438,3]
[402278783,1768642239571,-589.45,0.00016438,3]
[402278784,1768642239582,-500.0,0.00016438,3]
[402278785,1768642239592,-478.36647413,0.00016438,3]
[402278786,1768642239601,-500.0,0.00016438,3]
[402278787,1768642239611,-500.0,0.00016438,3]
[402278788,1768642239622,-500.0,0.00016438,3]
[402278789,1768642239632,-722.85,0.00016438,3]
[402278790,1768642239641,-500.0,0.00016438,3]
[402278791,1768642239649,-540.04,0.00016438,3]
[402278792,1768642239659,-500.0,0.00016438,3]
[402278793,1768642239669,-500.0,0.00016438,3]
[402278794,1768642239679,-1190.2,0.00016438,3]
[402278795,1768642239689,-838.74,0.00016438,3]
[402278796,1768642239699,-500.0,0.00016438,3]
[402278797,1768642239710,-1528.81,0.00016438,3]
[402278798,1768642239719,-500.0,0.00016438,3]
[402278799,1768642239729,-500.0,0.00016438,3]
[402278800,1768642239738,-500.0,0.00016438,3]
[402278801,1768642239747,-500.0,0.00016438,3]
[402278802,1768642239757,-500.0,0.00016438,3]
[402278803,1768642239767,-720.42,0.00016438,3]
[402278804,1768642239777,-500.0,0.00016438,3]
[402278805,1768642239786,-500.0,0.00016438,3]
[402278806,1768642239796,-500.0,0.00016438,3]
[402278807,1768642239805,-489.41292271,0.00016438,3]
[402278808,1768642239814,-1305.23,0.00016438,3]
[402278809,1768642239823,-500.0,0.00016438,3]
[402278810,1768642239832,-500.0,0.00016438,3]
[402278812,1768642239842,-500.0,0.00016438,3]
[402278814,1768642239851,-500.0,0.00016438,3]
[402278815,1768642239862,-500.0,0.00016438,3]
[402278816,1768642239871,-500.0,0.00016438,3]
[402278817,1768642239880,-1605.41,0.00016438,3]
[402278818,1768642239890,-1062.72,0.00016438,3]
[402278819,1768642239900,-500.0,0.00016438,3]
[402278820,1768642239910,-500.0,0.00016438,3]
[402278821,1768642239920,-667.38,0.00016438,3]
[402278822,1768642239929,-500.0,0.00016438,3]
[402278824,1768642239938,-500.0,0.00016438,3]
[402278826,1768642239947,-500.0,0.00016438,3]
[402278828,1768642239956,-500.0,0.00016438,3]
[402278829,1768642239966,-500.0,0.00016438,3]
[402278831,1768642239975,-500.0,0.00016438,3]
[402278833,1768642239984,-500.0,0.00016438,3]
[402278834,1768642239994,-500.0,0.00016438,3]
[402278836,1768642240003,-1092.79,0.00016438,3]
[402278838,1768642240012,-500.0,0.00016438,3]
[402278840,1768642240021,-500.0,0.00016438,3]
[402278841,1768642240030,-500.0,0.00016438,3]
[402278842,1768642240039,-500.0,0.00016438,3]
[402278843,1768642240049,-500.0,0.00016438,3]
[402278845,1768642240059,-500.0,0.00016438,3]
[402278847,1768642240068,-500.0,0.00016438,3]
[402278849,1768642240077,-500.0,0.00016438,3]
[402278851,1768642240086,-500.0,0.00016438,3]
[402278853,1768642240097,-500.0,0.00016438,3]
[402278855,1768642240107,-500.0,0.00016438,3]
[402278857,1768642240116,-500.0,0.00016438,3]
[402278859,1768642240126,-500.0,0.00016438,3]
[402278861,1768642240136,-511.84,0.00016438,3]
[402278863,1768642240146,-664.96,0.00016438,3]
[402278865,1768642240155,-641.68,0.00016438,3]
[402278867,1768642240164,-500.0,0.00016438,3]
[402278869,1768642240173,-1117.41,0.00016438,3]
[402278871,1768642240183,-500.0,0.00016438,3]
[402278873,1768642240192,-500.0,0.00016438,3]
[402278875,1768642240201,-500.0,0.00016438,3]
[402278876,1768642240210,-1133.3,0.00016438,3]
[402278878,1768642240219,-908.11,0.00016438,3]
[402278880,1768642240229,-500.0,0.00016438,3]
[402278882,1768642240238,-1311.72,0.00016438,3]
[402278884,1768642240247,-500.0,0.00016438,3]
[402278886,1768642240257,-500.0,0.00016438,3]
[402278888,1768642240266,-500.0,0.00016438,3]
[402278890,1768642240276,-785.52,0.00016438,3]
[402278892,1768642240287,-500.0,0.00016438,3]
[402278893,1768642240296,-887.98,0.00016438,3]
[402278894,1768642240306,-500.0,0.00016438,3]
[402278895,1768642240315,-500.0,0.00016438,3]
[402278896,1768642240325,-1100.34,0.00016438,3]
[402278898,1768642240334,-500.0,0.00016438,3]
[402278900,1768642240343,-500.0,0.00016438,3]
[402278902,1768642240352,-500.0,0.00016438,3]
[402278904,1768642240363,-500.0,0.00016438,3]
[402278906,1768642240372,-500.0,0.00016438,3]
[402278908,1768642240381,-578.08,0.00016438,3]
[402278910,1768642240391,-500.0,0.00016438,3]
[402278912,1768642240400,-550.82,0.00016438,3]
[402278914,1768642240410,-858.08,0.00016438,3]
[402278916,1768642240420,-500.0,0.00016438,3]
[402278918,1768642240429,-500.0,0.00016438,3]
[402278920,1768642240438,-496.95581154,0.00016438,3]
[402278922,1768642240448,-801.84,0.00016438,3]
[402278924,1768642240457,-500.0,0.00016438,3]
[402278926,1768642240467,-1306.81,0.00016438,3]
[402278928,1768642240477,-545.70994322,0.00016438,3]
[402278930,1768642240487,-500.0,0.00016438,3]
[402278932,1768642240496,-500.0,0.00016438,3]
[402278934,1768642240505,-1183.28,0.00016438,3]
[402278936,1768642240515,-500.0,0.00016438,3]
[402278938,1768642240525,-1136.8,0.00016438,3]
[402278940,1768642240534,-500.73,0.00016438,3]
[402278942,1768642240544,-500.0,0.00016438,3]
[402278944,1768642240553,-500.0,0.00016438,3]
[402278946,1768642240563,-500.0,0.00016438,3]
[402278948,1768642240572,-500.0,0.00016438,3]
[402278950,1768642240582,-259.47517722,0.00016438,3]
[402278952,1768642240592,-500.0,0.00016438,3]
[402278954,1768642240601,-500.0,0.00016438,3]
[402278956,1768642240610,-500.0,0.00016438,3]
[402278958,1768642240619,-500.0,0.00016438,2]
[402278960,1768642240629,-1262.54,0.00016438,3]
[402278962,1768642240638,-1394.96,0.00016438,3]
[402278964,1768642240648,-500.0,0.00016438,3]
[402278966,1768642240660,-500.0,0.00016438,3]
[402278968,1768642240671,-500.0,0.00016438,3]
[402278970,1768642240680,-500.0,0.00016438,3]
[402278972,1768642240689,-653.69,0.00016438,3]
[402278974,1768642240698,-500.0,0.00016438,3]
[402278976,1768642240707,-500.0,0.00016438,3]
[402278978,1768642240716,-500.0,0.00016438,3]
[402278980,1768642240726,-500.0,0.00016438,3]
[402278981,1768642240735,-500.0,0.00016438,3]
[402278983,1768642240745,-614.31374356,0.00016438,3]
[402278985,1768642240755,-827.33,0.00016438,3]
[402278987,1768642240764,-690.35,0.00016438,3]
[402278989,1768642240774,-500.0,0.00016438,3]
[402278991,1768642240783,-500.0,0.00016438,3]
[402278992,1768642240793,-1062.08,0.00016438,3]
[402278994,1768642240802,-408.02411447,0.00016438,3]
[402278996,1768642240811,-500.0,0.00016438,3]
[402278998,1768642240820,-500.0,0.00016438,3]
[402279000,1768642240830,-555.87,0.00016438,3]
[402279002,1768642240839,-523.7,0.00016438,3]
[402279004,1768642240848,-500.0,0.00016438,3]
[402279006,1768642240857,-500.0,0.00016438,3]
[402279008,1768642240866,-500.0,0.00016438,3]
[402279010,1768642240876,-581.36,0.00016438,3]
[402279012,1768642240885,-500.0,0.00016438,3]
[402279014,1768642240894,-500.0,0.00016438,3]
[402279016,1768642240903,-500.0,0.00016438,3]
[402279018,1768642240913,-500.0,0.00016438,3]
[402279020,1768642240923,-500.0,0.00016438,3]
[402279022,1768642240932,-500.0,0.00016438,3]
[402279023,1768642240941,-500.0,0.00016438,3]
[402279025,1768642240950,-500.0,0.00016438,3]
[402279027,1768642240960,-500.0,0.00016438,3]
[402279029,1768642240970,-1227.42,0.00016438,3]
[402279031,1768642240980,-1042.76,0.00016438,3]
[402279033,1768642240990,-500.0,0.00016438,3]
[402279035,1768642240999,-500.0,0.00016438,3]
[402279037,1768642241009,-500.0,0.00016438,3]
[402279039,1768642241018,-541.22,0.00016438,3]
[402279041,1768642241027,-1505.97,0.00016438,3]
[402279043,1768642241037,-500.0,0.00016438,3]
[402279045,1768642241047,-500.0,0.00016438,3]
[402279047,1768642241057,-500.0,0.00016438,3]
[402279049,1768642241067,-1332.61,0.00016438,3]
[402279051,1768642241076,-500.0,0.00016438,3]
[402279053,1768642241086,-1077.66,0.00016438,3]
[402279055,1768642241095,-500.0,0.00016438,3]
[402279057,1768642241104,-500.0,0.00016438,3]
[402279059,1768642241114,-596.89198935,0.00016438,3]
[402279060,1768642241125,-500.0,0.00016438,3]
[402279062,1768642241135,-500.0,0.00016438,3]
[402279064,1768642241144,-775.92,0.00016438,3]
[402279066,1768642241154,-500.0,0.00016438,3]
[402279069,1768642241164,-500.0,0.00016438,3]
[402279070,1768642241174,-500.0,0.00016438,3]
[402279073,1768642241184,-1040.39,0.00016438,3]
[402279075,1768642241194,-500.0,0.00016438,3]
[402279076,1768642241205,-500.0,0.00016438,3]
[402279078,1768642241214,-500.0,0.00016438,3]
[402279080,1768642241224,-579.76,0.00016438,3]
[402279082,1768642241234,-654.08,0.00016438,3]
[402279084,1768642241243,-816.15,0.00016438,3]
[402279086,1768642241252,-734.51,0.00016438,3]
[402279088,1768642241261,-500.0,0.00016438,3]
[402279090,1768642241271,-1018.89222665,0.00016438,3]
[402279092,1768642241281,-701.77,0.00016438,3]
[402279094,1768642241291,-500.0,0.00016438,3]
[402279096,1768642241306,-651.35,0.00016438,3]
[402279098,1768642241326,-500.0,0.00016438,3]
[402279100,1768642241339,-769.17,0.00016438,3]
[402279101,1768642241348,-500.0,0.00016438,3]
[402279104,1768642241361,-1740.11,0.00016438,3]
[402279106,1768642241370,-1024.94,0.00016438,3]
[402279108,1768642241379,-690.96,0.00016438,3]
[402279109,1768642241388,-692.52,0.00016438,3]
[402279111,1768642241398,-500.0,0.00016438,3]
[402279113,1768642241407,-1417.89,0.00016438,3]
[402279115,1768642241416,-500.0,0.00016438,3]
[402279117,1768642241425,-1218.46,0.00016438,3]
[402279119,1768642241434,-500.0,0.00016438,3]
[402279121,1768642241446,-583.49,0.00016438,3]
[402279123,1768642241455,-1017.69,0.00016438,3]
[402279125,1768642241464,-515.63,0.00016438,3]
[402279127,1768642241473,-500.0,0.00016438,3]
[402279129,1768642241484,-500.0,0.00016438,3]
[402279131,1768642241494,-500.0,0.00016438,3]
[402279133,1768642241503,-500.0,0.00016438,3]
[402279135,1768642241514,-647.1,0.00016438,3]
[402279137,1768642241523,-500.0,0.00016438,3]
[402279139,1768642241532,-564.98156914,0.00016438,3]
[402279141,1768642241541,-500.0,0.00016438,3]
[402279143,1768642241551,-390.63830152,0.00016438,3]
[402279145,1768642241560,-500.0,0.00016438,3]
[402279147,1768642241570,-500.0,0.00016438,3]
[402279149,1768642241579,-500.0,0.00016438,3]
[402279151,1768642241589,-500.0,0.00016438,3]
[402279153,1768642241598,-500.0,0.00016438,3]
[402279155,1768642241608,-500.0,0.00016438,3]
[402279157,1768642241616,-500.0,0.00016438,3]
[402279159,1768642241626,-500.0,0.00016438,3]
[402279161,1768642241635,-500.0,0.00016438,3]
[402279163,1768642241644,-642.41,0.00016438,3]
[402279165,1768642241655,-500.0,0.00016438,3]
[402279167,1768642241664,-500.0,0.00016438,3]
[402279169,1768642241673,-500.0,0.00016438,3]
[402279171,1768642241683,-1094.11,0.00016438,3]
[402279173,1768642241692,-500.0,0.00016438,3]
[402279175,1768642241702,-500.0,0.00016438,3]
[402279177,1768642241711,-668.81,0.00016438,3]
[402279179,1768642241720,-1914.92,0.00016438,3]
[402279181,1768642241730,-500.0,0.00016438,3]
[402279183,1768642241739,-500.0,0.00016438,3]
[402279185,1768642241748,-500.0,0.00016438,3]
[402279187,1768642241757,-1181.29,0.00016438,3]
[402279189,1768642241766,-500.0,0.00016438,3]
[402279191,1768642241776,-755.46,0.00016438,3]
[402279193,1768642241785,-548.77,0.00016438,3]
[402279195,1768642241794,-500.0,0.00016438,3]
[402279196,1768642241804,-500.0,0.00016438,3]
[402279198,1768642241813,-970.37,0.00016438,3]
[402279200,1768642241822,-539.12,0.00016438,3]
[402279202,1768642241831,-1119.97,0.00016438,3]
[402279204,1768642241840,-519.93,0.00016438,3]
[402279206,1768642241849,-500.0,0.00016438,3]
[402279208,1768642241858,-1246.55,0.00016438,3]
[402279209,1768642241867,-500.0,0.00016438,3]
[402279211,1768642241877,-500.0,0.00016438,3]
[402279213,1768642241886,-500.0,0.00016438,3]
[402279215,1768642241895,-500.0,0.00016438,3]
[402279217,1768642241904,-500.0,0.00016438,3]
[402279219,1768642241913,-244.26437665,0.00016438,3]
[402279221,1768642241922,-1412.39,0.00016438,3]
[402279223,1768642241932,-578.29,0.00016438,3]
[402279225,1768642241941,-500.0,0.00016438,3]
[402279227,1768642241950,-1428.23,0.00016438,3]
[402279229,1768642241959,-500.0,0.00016438,3]
[402279231,1768642241968,-500.0,0.00016438,3]
[402279233,1768642241977,-500.0,0.00016438,3]
[402279235,1768642241986,-500.0,0.00016438,3]
[402279237,1768642241996,-625.78,0.00016438,3]
[402279239,1768642242006,-1000.0,0.00016438,2]
[402279241,1768642242015,-521.93686507,0.00016438,3]
[402279243,1768642242024,-500.0,0.00016438,2]
[402279245,1768642242034,-500.0,0.00016438,3]
[402279247,1768642242043,-500.0,0.00016438,3]
[402279249,1768642242052,-970.84,0.00016438,3]
[402279251,1768642242061,-500.0,0.00016438,3]
[402279253,1768642242070,-807.13,0.00016438,3]
[402279255,1768642242080,-500.0,0.00016438,3]
[402279257,1768642242089,-849.61,0.00016438,3]
[402279258,1768642242097,-500.0,0.00016438,3]
[402279260,1768642242107,-547.75,0.00016438,3]
[402279262,1768642242116,-500.0,0.00016438,3]
[402279264,1768642242125,-500.0,0.00016438,3]
[402279266,1768642242134,-500.0,0.00016438,3]
[402279268,1768642242143,-500.0,0.00016438,3]
[402279270,1768642242153,-500.0,0.00016438,3]
[402279272,1768642242162,-500.0,0.00016438,3]
[402279274,1768642242172,-500.0,0.00016438,3]
[402279276,1768642242181,-566.14,0.00016438,3]
[402279278,1768642242191,-500.0,0.00016438,3]
[402279280,1768642242200,-500.0,0.00016438,3]
[402279282,1768642242211,-500.0,0.00016438,3]
[402279284,1768642242220,-500.0,0.00016438,3]
[402279286,1768642242229,-500.0,0.00016438,3]
[402279288,1768642242238,-500.0,0.00016438,3]
[402279289,1768642242247,-500.0,0.00016438,3]
[402279291,1768642242256,-500.0,0.00016438,3]
[402279293,1768642242265,-500.0,0.00016438,3]
[402279295,1768642242273,-1210.14,0.00016438,3]
[402279297,1768642242282,-500.0,0.00016438,3]
[402279299,1768642242291,-500.0,0.00016438,3]
[402279301,1768642242300,-579.1,0.00016438,3]
[402279303,1768642242311,-941.91,0.00016438,3]
[402279305,1768642242319,-500.0,0.00016438,3]
[402279307,1768642242329,-500.0,0.00016438,3]
[402279309,1768642242339,-1024.63,0.00016438,3]
[402279311,1768642242347,-500.0,0.00016438,3]
[402279313,1768642242356,-500.0,0.00016438,3]
[402279315,1768642242366,-681.39,0.00016438,3]
[402279318,1768642242375,-1169.69,0.00016438,3]
[402279320,1768642242384,-500.0,0.00016438,3]
[402279322,1768642242393,-635.39,0.00016438,3]
[402279324,1768642242403,-1602.24,0.00016438,3]
[402279326,1768642242412,-500.0,0.00016438,3]
[402279328,1768642242421,-578.84,0.00016438,3]
[402279331,1768642242431,-500.0,0.00016438,3]
[402279334,1768642242440,-500.0,0.00016438,3]
[402279337,1768642242448,-878.69,0.00016438,3]
[402279340,1768642242457,-500.0,0.00016438,3]
[402279343,1768642242466,-1289.92,0.00016438,3]
[402279346,1768642242475,-774.98,0.00016438,3]
[402279349,1768642242484,-515.14,0.00016438,3]
[402279351,1768642242493,-577.36,0.00016438,3]
[402279353,1768642242502,-817.21,0.00016438,3]
[402279355,1768642242511,-500.0,0.00016438,3]
[402279357,1768642242520,-500.0,0.00016438,3]
[402279358,1768642242529,-855.33,0.00016438,3]
[402279360,1768642242538,-14952.36,0.00016438,3]
[402279362,1768642242547,-500.0,0.00016438,3]
[402279364,1768642242557,-500.0,0.00016438,3]
[402279367,1768642242566,-1130.07,0.00016438,3]
[402279369,1768642242575,-500.0,0.00016438,3]
[402279371,1768642242586,-500.0,0.00016438,3]
[402279373,1768642242595,-500.0,0.00016438,3]
[402279375,1768642242604,-500.0,0.00016438,3]
[402279377,1768642242614,-500.0,0.00016438,3]
[402279379,1768642242624,-500.0,0.00016438,3]
[402279381,1768642242633,-500.0,0.00016438,3]
[402279383,1768642242644,-500.0,0.00016438,3]
[402279385,1768642242654,-653.71,0.00016438,3]
[402279387,1768642242665,-500.0,0.00016438,3]
[402279390,1768642242676,-500.0,0.00016438,3]
[402279391,1768642242686,-1043.18,0.00016438,3]
[402279393,1768642242697,-2841.2,0.00016438,3]
[402279395,1768642242706,-500.0,0.00016438,3]
[402279397,1768642242716,-500.0,0.00016438,3]
[402279399,1768642242726,-500.0,0.00016438,3]
[402279401,1768642242736,-509.49,0.00016438,3]
[402279403,1768642242744,-519.71,0.00016438,3]
[402279405,1768642242754,-500.0,0.00016438,3]
[402279407,1768642242763,-924.01,0.00016438,3]
[402279409,1768642242773,-500.0,0.00016438,3]
[402279411,1768642242782,-500.0,0.00016438,3]
[402279413,1768642242791,-520.43,0.00016438,3]
[402279415,1768642242801,-500.0,0.00016438,3]
[402279417,1768642242810,-500.0,0.00016438,3]
[402279419,1768642242820,-500.0,0.00016438,3]
[402279421,1768642242829,-684.83,0.00016438,3]
[402279423,1768642242839,-530.24218336,0.00016438,3]
[402279425,1768642242849,-614.82090661,0.00016438,3]
[402279427,1768642242859,-225.94247433,0.00016438,3]
[402279429,1768642242870,-500.0,0.00016438,3]
[402279431,1768642242879,-806.5,0.00016438,3]
[402279433,1768642242890,-500.0,0.00016438,3]
[402279435,1768642242899,-826.94,0.00016438,3]
[402279437,1768642242909,-500.0,0.00016438,3]
[402279439,1768642242919,-1088.72,0.00016438,3]
[402279441,1768642242929,-1282.36,0.00016438,3]
[402279443,1768642242939,-500.0,0.00016438,3]
[402279445,1768642242948,-811.01,0.00016438,3]
[402279446,1768642242958,-505.61,0.00016438,3]
[402279447,1768642242969,-500.0,0.00016438,3]
[402279448,1768642242980,-1079.38,0.00016438,3]
[402279449,1768642242990,-719.32,0.00016438,3]
[402279450,1768642243000,-500.0,0.00016438,3]
[402279451,1768642243010,-500.0,0.00016438,3]
[402279452,1768642243019,-1419.15,0.00016438,3]
[402279453,1768642243028,-259.38255864,0.00016438,3]
[402283283,1768642640599,-398.55355452,9.075e-05,2]
[402283284,1768642643928,-356.90347793,9.075e-05,2]
[402283285,1768642645484,-517.31860554,9.075e-05,2]
[402283286,1768642649156,-157.43190386,9.075e-05,2]
[402283287,1768642653224,-282.63540539,9.075e-05,2]
[402283288,1768642654786,-296.61904294,9.075e-05,2]
[402283289,1768642656660,-163.04901972,9.075e-05,2]
[402283290,1768642660418,-392.35993336,9.075e-05,2]
[402283291,1768642664239,-343.64897959,9.075e-05,2]
[402283292,1768642665932,-181.56102041,9.075e-05,2]
[402283293,1768642669370,-154.38,9.075e-05,2]
[402283294,1768642675142,-791.93746355,9.075e-05,2]
[402283295,1768642677119,-162.31579678,9.075e-05,2]
[402283296,1768642678553,-223.13771395,9.075e-05,2]
[402283297,1768642680048,-300.0,9.075e-05,2]
[402283298,1768642682103,-250.05648491,9.075e-05,2]
[402283299,1768642685870,-28.09159755,9.075e-05,2]
[402283300,1768642685892,-263.90356187,9.167e-05,2]
[402283301,1768642687879,-171.49066336,9.167e-05,2]
[402283302,1768642689877,-263.64472173,9.167e-05,2]
[402283303,1768642693854,-364.86461491,9.167e-05,2]
[402283304,1768642696949,-403.89605727,9.167e-05,2]
[402283305,1768642700753,-271.70769521,9.167e-05,2]
[402283306,1768642702858,-177.59,9.167e-05,2]
[402283307,1768642708914,-728.18,9.075e-05,2]
[402283308,1768642710263,-208.38898665,9.075e-05,2]
[402283309,1768642712291,-229.07531038,9.075e-05,2]
[402283310,1768642713874,-162.28116241,9.075e-05,2]
[402283311,1768642720716,-206.1657517,9.075e-05,2]
[402283312,1768642722848,-230.32907703,9.075e-05,2]
[402283313,1768642725524,-207.38050303,9.075e-05,2]
[402283314,1768642727493,-440.59077094,9.075e-05,2]
[402283315,1768642729192,-271.82922906,9.075e-05,2]
[402283316,1768642731315,-161.85024419,9.075e-05,2]
[402283317,1768642733379,-315.8052525,9.075e-05,2]
[402283318,1768642734826,-212.63828564,9.075e-05,2]
[402283319,1768642737049,-357.47517775,9.075e-05,2]
[402283320,1768642739808,-246.77588714,9.075e-05,2]
[402283321,1768642741417,-500.0,9.075e-05,2]
[402283322,1768642744656,-308.75,9.075e-05,2]
[402283323,1768642749609,-200.83374673,9.075e-05,2]
[402283324,1768642820330,-11.65061485,9.075e-05,2]
[402283325,1768642820351,-305.15704673,9.075e-05,2]
[402283326,1768642822083,-171.18877023,9.075e-05,2]
[402283327,1768642826451,5000.0,8.93e-05,2]
[402283328,1768642834533,5000.0,8.93e-05,2]
[402283329,1768642850801,0.01,8.93e-05,2]
[402283330,1768642850825,4999.99,8.93e-05,2]
[402283331,1768642858833,5000.0,8.93e-05,2]
[402283332,1768642874197,5000.0,8.93e-05,2]
[402283333,1768642882575,5000.0,8.93e-05,2]
[402283335,1768642898581,5000.0,8.93e-05,2]
[402283336,1768642906591,5000.0,8.93e-05,2]
[402283337,1768642922437,0.01,8.93e-05,2]
[402283338,1768642922459,4999.99,8.93e-05,2]
[402283339,1768642930125,5000.0,8.93e-05,2]
[402283340,1768642945313,5000.0,8.93e-05,2]
[402283341,1768642953605,5000.0,8.93e-05,2]
[402283342,1768642968768,5000.0,8.93e-05,2]
[402283343,1768642976592,5000.0,8.93e-05,2]
[402283344,1768642991781,0.01,8.93e-05,2]
[402283345,1768642991808,4999.99,8.93e-05,2]
[402283346,1768642999598,5000.0,8.93e-05,2]
[402283347,1768643015287,5000.0,8.93e-05,2]
[402283348,1768643023055,5000.0,8.93e-05,2]
[402283349,1768643038162,0.01,8.93e-05,2]
[402283350,1768643038185,4999.99,8.93e-05,2]
[402283351,1768643045927,5000.0,8.93e-05,2]
[402283352,1768643062120,5000.0,8.93e-05,2]
[402283353,1768643069935,0.01,8.93e-05,2]
[402283354,1768643069962,4999.99,8.93e-05,2]
[402283355,1768643085620,5000.0,8.93e-05,2]
[402283356,1768643093371,5000.0,8.93e-05,2]
[402283357,1768643110495,5000.0,8.93e-05,2]
[402283358,1768643118330,5000.0,8.93e-05,2]
[402283359,1768643134013,5000.0,8.93e-05,2]
[402283360,1768643141714,5000.0,8.93e-05,2]
[402283361,1768643156826,5000.0,8.93e-05,2]
[402283362,1768643164652,5000.0,8.93e-05,2]
[402283363,1768643179930,0.01,8.93e-05,2]
[402283364,1768643179956,4999.99,8.93e-05,2]
[402283365,1768643187720,5000.0,8.93e-05,2]
[402283366,1768643203928,5000.0,8.93e-05,2]
[402283367,1768643211688,5000.0,8.93e-05,2]
[402283368,1768643226771,5000.0,8.93e-05,2]
[402283369,1768643234581,5000.0,8.93e-05,2]
[402283371,1768643249942,5000.0,8.93e-05,2]
[402283379,1768643257691,4884.23709337,8.93e-05,2]
[402283380,1768643272996,5000.0,8.93e-05,2]
[402283381,1768643295709,5000.0,8.93e-05,2]
[402283382,1768643318532,5000.0,8.93e-05,2]
[402283383,1768643340721,5000.0,8.93e-05,2]
[402283384,1768643363149,2325.63107075,8.93e-05,2]
[402283385,1768643420447,-300.0,9.075e-05,2]
[402283386,1768643422763,-212.22169975,9.075e-05,2]
[402283469,1768643438269,-34.77830025,9.075e-05,2]
[402283471,1768643438280,-347.03,9.539e-05,2]
[402283473,1768643438290,-694.06,9.994e-05,2]
[402283476,1768643438301,-725.43884714,0.00010448,2]